bitfinex/quotes_SOLUSD_20250922
["timestamp","ask_amount","ask_price","bid_price","bid_amount"]
[1758505641739,4.26311975,234.57,234.54,0.2]
[1758505641941,33.36,234.56,234.54,0.2]
[1758505642642,0.71,234.55,234.54,0.2]
[1758505643838,33.36,234.56,234.54,0.2]
[1758505644042,37.62332736,234.56,234.54,0.2]
[1758505645150,163.19999999,234.55,234.54,0.2]
[1758505648566,163.19999999,234.55,234.54,0.9]
[1758505650475,131.99999999,234.55,234.54,0.9]
[1758505651956,33.36,234.6,234.55,4.26348326]
[1758505652180,33.36,234.6,234.56,0.7]
[1758505652685,31.2,234.62,234.56,0.7]
[1758505652876,33.36,234.61,234.56,0.7]
[1758505653071,33.36,234.61,234.56,4.96316964]
[1758505653372,33.36,234.62,234.57,0.7]
[1758505653679,0.69,234.61,234.54,0.9]
[1758505654580,0.69,234.61,234.54,5.16366236]
[1758505654870,0.69,234.61,234.55,0.7]
[1758505655078,31.2,234.59,234.55,4.96345712]
[1758505655260,31.2,234.59,234.56,0.7]
[1758505655456,31.2,234.59,234.57,0.7]
[1758505655660,31.2,234.59,234.55,0.7]
[1758505655864,31.2,234.59,234.56,0.7]
[1758505656063,31.2,234.59,234.57,0.7]
[1758505656571,31.2,234.59,234.54,0.9]
[1758505656873,31.2,234.55,234.54,0.2]
[1758505657071,33.36,234.57,234.54,0.2]
[1758505657268,0.69,234.55,234.54,0.2]
[1758505657868,33.36,234.57,234.54,0.2]
[1758505658261,31.2,234.55,234.54,0.2]
[1758505658664,35.46348326,234.55,234.54,0.2]
[1758505660075,31.2,234.55,234.54,0.2]
[1758505660268,33.36,234.57,234.54,0.9]
[1758505660463,31.2,234.55,234.54,0.2]
[1758505663898,33.36,234.58,234.54,0.9]
[1758505664070,0.69,234.62,234.55,0.7]
[1758505664071,31.2,234.57,234.55,0.7]
[1758505664724,0.69,234.56,234.54,0.2]
[1758505664863,0.69,234.55,234.54,0.2]
[1758505665059,34.03,234.57,234.54,0.2]
[1758505665279,33.34,234.57,234.54,0.9]
[1758505665678,33.34,234.57,234.55,0.7]
[1758505665879,31.2,234.56,234.55,0.7]
[1758505666392,33.34,234.59,234.55,0.7]
[1758505666588,64.54,234.59,234.54,0.2]
[1758505666778,31.2,234.57,234.55,0.7]
[1758505667093,33.34,234.61,234.56,0.7]
[1758505667388,31.2,234.58,234.56,0.7]
[1758505667590,31.2,234.58,234.54,4.46354985]
[1758505667883,64.54,234.61,234.57,0.7]
[1758505668085,69.4924216,234.61,234.54,0.2]
[1758505668290,69.4924216,234.61,234.54,0.9]
[1758505668500,132.2,234.56,234.54,0.2]
[1758505668702,165.54,234.55,234.54,0.2]
[1758505669001,166.23,234.55,234.54,0.2]
[1758505669207,167.94016909,234.55,234.54,0.2]
[1758505669506,169.40840388,234.55,234.54,0.2]
[1758505670289,173.67188714,234.55,234.54,0.2]
[1758505670807,33.34,234.59,234.54,0.9]
[1758505670984,31.2,234.56,234.54,0.9]
[1758505671183,31.2,234.56,234.54,0.2]
[1758505671790,31.2,234.56,234.54,0.9]
[1758505671991,0.69,234.64,234.55,0.7]
[1758505672293,31.2,234.6,234.55,0.7]
[1758505672493,31.2,234.6,234.56,0.7]
[1758505672804,35.46258857,234.6,234.56,0.7]
[1758505673303,31.2,234.59,234.54,0.9]
[1758505673509,31.2,234.58,234.54,0.9]
[1758505674207,31.2,234.58,234.55,0.7]
[1758505674589,31.2,234.58,234.56,0.7]
[1758505674793,163.4,234.58,234.57,0.7]
[1758505676102,163.4,234.58,234.54,0.9]
[1758505676402,163.4,234.58,234.55,0.7]
[1758505676608,163.4,234.58,234.56,0.7]
[1758505676809,163.4,234.58,234.57,0.72]
[1758505676997,132.2,234.58,234.57,0.72]
[1758505678896,37.60176066,234.65,234.58,4.26293801]
[1758505681314,1.48137577,234.61,234.59,0.72]
[1758505681489,2.87149294,234.64,234.59,0.72]
[1758505681695,1.48134318,234.63,234.59,0.72]
[1758505682001,1.48134318,234.62,234.59,0.72]
[1758505682211,1.48134318,234.61,234.59,0.72]
[1758505682394,68.80170176,234.65,234.59,0.72]
[1758505682595,5.74318431,234.64,234.59,0.72]
[1758505682816,2.16127136,234.63,234.56,0.72]
[1758505682997,1.48127136,234.62,234.56,0.72]
[1758505683197,0.68,234.63,234.56,0.72]
[1758505683517,1.48107633,234.62,234.56,0.72]
[1758505683835,132.2,234.66,234.57,31.2]
[1758505684005,132.2,234.66,234.58,0.72]
[1758505684613,132.2,234.66,234.59,14.91964703]
[1758505684798,132.2,234.66,234.6,0.72]
[1758505686015,132.2,234.66,234.61,4.2623929]
[1758505686221,132.2,234.66,234.62,0.72]
[1758505686421,132.2,234.66,234.63,0.72]
[1758505686825,31.2,234.71,234.64,0.72]
[1758505687022,0.68,234.7,234.61,14.91837516]
[1758505687246,132.88,234.69,234.61,0.72]
[1758505687401,166.22,234.69,234.59,4.98275629]
[1758505687598,132.88,234.68,234.59,0.72]
[1758505687929,31.2,234.64,234.56,0.72]
[1758505688117,165.52,234.63,234.54,0.2]
[1758505688317,0.68,234.62,234.54,4.4636325]
[1758505688499,0.68,234.61,234.54,4.4636325]
[1758505689421,4.97257459,234.6,234.54,0.2]
[1758505689916,0.71,234.6,234.54,4.46360073]
[1758505690605,136.46216751,234.63,234.55,0.7]
[1758505690811,132.2,234.63,234.55,0.7]
[1758505691205,132.2,234.63,234.56,4.2633015]
[1758505691405,132.2,234.63,234.57,0.7]
[1758505692327,132.2,234.72,234.57,0.7]
[1758505692502,0.71,234.73,234.59,31.2]
[1758505692701,0.71,234.73,234.6,0.7]
[1758505692927,0.71,234.73,234.6,34.12]
[1758505693116,0.71,234.73,234.61,0.7]
[1758505693117,0.71,234.72,234.61,0.7]
[1758505693421,0.71,234.72,234.62,4.26221123]
[1758505693718,0.71,234.72,234.63,0.7]
[1758505694112,4.97040481,234.72,234.63,0.7]
[1758505695314,4.97040481,234.72,234.64,4.26184793]
[1758505696027,31.2,234.73,234.64,14.91646777]
[1758505696219,31.2,234.73,234.65,0.7]
[1758505696913,0.71,234.73,234.65,0.7]
[1758505697228,31.91,234.73,234.66,4.2614847]
[1758505697730,31.2,234.73,234.67,0.7]
[1758505697918,10.65461984,234.76,234.67,0.7]
[1758505698229,0.71,234.77,234.67,0.7]
[1758505699027,0.71,234.82,234.69,31.2]
[1758505699228,31.2,234.81,234.71,14.91201908]
[1758505699431,31.2,234.81,234.72,0.7]
[1758505699642,4.96863439,234.82,234.72,0.7]
[1758505700130,0.71,234.82,234.72,0.7]
[1758505701045,0.71,234.82,234.73,4.26021386]
[1758505701335,0.71,234.82,234.74,0.7]
[1758505702125,31.3,234.83,234.74,0.7]
[1758505702506,0.1,234.83,234.74,0.7]
[1758505703116,0.1,234.83,234.75,14.90947816]
[1758505703306,0.1,234.83,234.76,0.7]
[1758505705029,0.1,234.83,234.77,14.90820802]
[1758505705210,0.1,234.83,234.77,4.259488]
[1758505705414,0.71,234.82,234.75,4.25973183]
[1758505705624,0.71,234.82,234.75,4.95973183]
[1758505706135,0.1,234.83,234.75,14.90935909]
[1758505706322,0.1,234.83,234.76,0.7]
[1758505707510,0.1,234.83,234.75,0.68]
[1758505709237,0.1,234.83,234.75,34.0]
[1758505709406,0.1,234.83,234.76,4.25966944]
[1758505709611,0.1,234.83,234.76,4.93966944]
[1758505709931,4.35844065,234.83,234.74,4.25986702]
[1758505710114,0.7,234.82,234.74,37.57986702]
[1758505710313,0.7,234.82,234.74,4.25986702]
[1758505710535,0.7,234.82,234.73,0.68]
[1758505710716,0.7,234.81,234.73,0.68]
[1758505710911,0.7,234.81,234.73,4.94017912]
[1758505711636,4.25894378,234.8,234.73,4.94017912]
[1758505713243,132.2,234.79,234.73,4.94017912]
[1758505713619,132.2,234.79,234.74,0.68]
[1758505713833,132.2,234.79,234.75,0.68]
[1758505714131,132.2,234.79,234.73,4.26017912]
[1758505714132,132.2,234.79,234.76,0.68]
[1758505714440,132.2,234.79,234.73,4.94017912]
[1758505714613,132.9,234.79,234.73,4.94017912]
[1758505715214,132.2,234.79,234.73,4.94017912]
[1758505715742,132.2,234.79,234.73,4.26017912]
[1758505716043,132.2,234.79,234.74,0.68]
[1758505716613,0.7,234.78,234.71,33.98]
[1758505717035,132.2,234.79,234.72,0.68]
[1758505717218,0.7,234.78,234.71,33.98]
[1758505717418,0.7,234.78,234.71,0.68]
[1758505717646,4.95938514,234.78,234.71,4.94050557]
[1758505718137,132.9,234.77,234.68,4.94097625]
[1758505718314,132.9,234.77,234.68,4.26097625]
[1758505718514,132.9,234.77,234.69,0.68]
[1758505719112,132.2,234.76,234.69,0.68]
[1758505719547,132.2,234.76,234.7,4.26075841]
[1758505721542,136.45984543,234.76,234.64,10.65456161]
[1758505721745,0.7,234.75,234.65,4.94166631]
[1758505721913,136.45984543,234.76,234.65,4.94166631]
[1758505721914,0.7,234.74,234.65,4.94166631]
[1758505722227,136.45984543,234.76,234.65,4.94166631]
[1758505722228,0.7,234.73,234.65,4.94166631]
[1758505722640,0.7,234.72,234.65,4.94166631]
[1758505723748,4.96049617,234.72,234.65,4.94166631]
[1758505724118,132.2,234.71,234.65,4.94166631]
[1758505725146,136.46059511,234.71,234.65,0.68]
[1758505725853,132.2,234.71,234.65,4.94158715]
[1758505726347,132.2,234.71,234.66,0.68]
[1758505726756,132.2,234.71,234.67,0.68]
[1758505727253,132.2,234.71,234.67,4.94128224]
[1758505727442,132.2,234.71,234.68,0.68]
[1758505727644,132.2,234.71,234.69,0.68]
[1758505727839,132.2,234.71,234.67,4.26128224]
[1758505728036,132.2,234.71,234.67,4.94128224]
[1758505729555,132.2,234.78,234.68,0.68]
[1758505729858,132.2,234.77,234.68,0.68]
[1758505730653,0.7,234.76,234.68,0.68]
[1758505730825,0.7,234.76,234.69,33.3]
[1758505731253,0.7,234.76,234.7,4.26075841]
[1758505731551,0.7,234.76,234.7,4.94075841]
[1758505731737,132.2,234.77,234.7,15.59265444]
[1758505732048,0.7,234.76,234.7,4.94075841]
[1758505736849,132.2,234.77,234.7,4.94075841]
[1758505737059,132.2,234.77,234.71,0.67]
[1758505737347,0.72,234.76,234.7,4.26075841]
[1758505737726,0.72,234.76,234.7,4.93075841]
[1758505740754,0.72,234.76,234.71,0.67]
[1758505740952,0.72,234.76,234.72,0.67]
[1758505741328,0.72,234.76,234.72,4.93030969]
[1758505741538,132.2,234.77,234.72,4.93030969]
[1758505741725,132.2,234.77,234.73,0.67]
[1758505741950,132.2,234.77,234.74,33.3]
[1758505742149,132.92,234.84,234.75,0.67]
[1758505742551,5.07844485,234.83,234.73,0.67]
[1758505742767,31.2,234.8,234.72,4.26030969]
[1758505743063,132.92,234.79,234.71,0.67]
[1758505743239,4.25930658,234.78,234.7,37.56075841]
[1758505743447,0.72,234.77,234.7,37.56075841]
[1758505743649,4.25930658,234.78,234.7,4.26075841]
[1758505743845,0.72,234.76,234.7,37.56075841]
[1758505744737,0.72,234.76,234.7,38.23075841]
[1758505746356,0.72,234.76,234.64,0.67]
[1758505746357,0.72,234.75,234.64,0.67]
[1758505746566,0.72,234.75,234.64,33.97]
[1758505746863,132.92,234.74,234.65,0.67]
[1758505748263,132.92,234.74,234.63,14.91710351]
[1758505748264,136.46021386,234.73,234.62,0.67]
[1758505748435,136.46021386,234.73,234.62,33.97]
[1758505748634,0.72,234.72,234.62,33.97]
[1758505748865,0.72,234.71,234.63,4.26202957]
[1758505749035,0.72,234.71,234.63,4.93202957]
[1758505749454,0.72,234.71,234.64,0.72]
[1758505750240,4.98057872,234.71,234.62,37.56206503]
[1758505750437,4.98057872,234.71,234.61,0.72]
[1758505750438,0.67,234.7,234.61,0.72]
[1758505751141,0.67,234.7,234.61,4.98237537]
[1758505751344,0.67,234.69,234.61,4.98237537]
[1758505751567,0.67,234.68,234.61,4.98237537]
[1758505751965,0.67,234.68,234.62,0.72]
[1758505752141,0.67,234.7,234.63,4.26202957]
[1758505752455,0.67,234.7,234.62,0.72]
[1758505752456,0.67,234.69,234.62,0.72]
[1758505752660,0.67,234.69,234.6,0.72]
[1758505752851,31.2,234.68,234.6,0.72]
[1758505753049,132.87,234.67,234.57,0.72]
[1758505753357,31.2,234.64,234.56,33.3]
[1758505753661,0.67,234.63,234.56,33.3]
[1758505753859,0.67,234.62,234.56,33.3]
[1758505754376,4.93227459,234.62,234.56,37.56328615]
[1758505754770,0.67,234.62,234.56,37.56328615]
[1758505755661,0.67,234.62,234.56,37.56324785]
[1758505755856,0.67,234.62,234.56,38.28324785]
[1758505756256,4.93226772,234.62,234.56,38.28327369]
[1758505756652,31.2,234.59,234.53,0.2]
[1758505756974,33.97,234.58,234.53,0.2]
[1758505757152,31.2,234.55,234.53,0.2]
[1758505757542,31.87,234.55,234.53,0.2]
[1758505758238,36.13348326,234.55,234.53,0.2]
[1758505760873,69.43348326,234.55,234.53,0.2]
[1758505762564,69.43348326,234.55,234.54,1e-08]
[1758505762765,80.09219142,234.55,234.52,0.2]
[1758505763652,132.2,234.54,234.52,0.2]
[1758505763972,136.46384684,234.53,234.52,0.2]
[1758505764166,137.13384684,234.53,234.52,0.2]
[1758505764667,4.93384684,234.53,234.52,0.2]
[1758505767278,36.13384684,234.53,234.52,0.2]
[1758505767478,36.13384684,234.53,234.5,0.2]
[1758505767479,31.2,234.52,234.5,0.2]
[1758505767686,33.32,234.51,234.5,0.2]
[1758505767857,38.25421048,234.51,234.5,1e-08]
[1758505768559,39.96474523,234.51,234.5,1e-08]
[1758505771971,39.29474523,234.51,234.5,1e-08]
[1758505772166,39.96474523,234.51,234.5,1e-08]
[1758505772552,131.99999999,234.49,234.45,0.71]
[1758505773068,31.2,234.46,234.35,4.46695525]
[1758505773374,4.2654837,234.44,234.43,0.71]
[1758505774277,68.78528261,234.46,234.43,0.71]
[1758505774478,73.05203198,234.46,234.37,3.97674937]
[1758505774673,132.2,234.43,234.37,3.97674937]
[1758505776372,132.2,234.43,234.38,0.71]
[1758505776570,132.2,234.43,234.39,0.71]
[1758505776771,132.2,234.43,234.4,0.71]
[1758505777076,132.2,234.43,234.41,0.71]
[1758505777278,132.2,234.43,234.42,0.71]
[1758505777476,68.78674937,234.46,234.42,0.71]
[1758505777777,73.05190013,234.46,234.42,0.71]
[1758505777980,68.78674937,234.46,234.42,0.71]
[1758505778288,64.52,234.46,234.42,0.71]
[1758505778465,64.52,234.46,234.43,0.71]
[1758505778466,31.2,234.46,234.43,0.71]
[1758505778661,31.2,234.46,234.44,0.71]
[1758505778989,31.2,234.46,234.41,0.71]
[1758505779187,31.2,234.46,234.42,0.71]
[1758505780279,31.2,234.46,234.41,4.26599419]
[1758505780478,31.2,234.46,234.42,0.71]
[1758505781261,31.2,234.46,234.41,4.26599419]
[1758505781475,31.2,234.46,234.37,10.66664842]
[1758505781679,31.2,234.46,234.41,0.71]
[1758505782380,31.2,234.46,234.39,0.71]
[1758505782686,31.2,234.46,234.4,4.2662116]
[1758505784762,31.2,234.46,234.38,4.26640623]
[1758505784965,36.13514952,234.46,234.39,0.71]
[1758505785382,31.87,234.46,234.39,0.71]
[1758505785885,31.87,234.46,234.4,4.2662116]
[1758505786192,31.87,234.46,234.4,4.9762116]
[1758505786389,132.2,234.49,234.4,4.2662116]
[1758505786685,31.2,234.46,234.38,0.71]
[1758505787467,132.2,234.45,234.38,0.71]
[1758505788075,132.2,234.45,234.39,4.26639361]
[1758505788276,132.2,234.45,234.39,4.97639361]
[1758505788884,137.13535703,234.45,234.39,4.97639361]
[1758505789483,132.87,234.45,234.39,4.97639361]
[1758505790168,137.13530418,234.45,234.39,4.97639361]
[1758505791195,132.87,234.45,234.39,4.97639361]
[1758505791992,132.87,234.45,234.39,4.26639361]
[1758505792684,0.67,234.44,234.37,4.97659294]
[1758505792892,136.46532787,234.45,234.37,4.97659294]
[1758505793091,0.67,234.44,234.37,4.97659294]
[1758505793279,136.46532787,234.45,234.37,4.97659294]
[1758505793599,0.67,234.43,234.37,4.97659294]
[1758505793997,0.67,234.43,234.36,14.93385288]
[1758505794377,0.67,234.43,234.36,15.64385288]
[1758505794777,0.67,234.43,234.36,4.97693975]
[1758505794972,0.67,234.42,234.36,4.97693975]
[1758505796990,170.49539232,234.45,234.37,0.68]
[1758505797278,132.91,234.45,234.37,0.68]
[1758505798103,132.2,234.45,234.38,14.93301475]
[1758505798279,132.2,234.45,234.39,0.68]
[1758505800300,132.2,234.45,234.4,4.2662116]
[1758505800499,132.91,234.45,234.4,4.9462116]
[1758505801702,0.71,234.44,234.38,11.34643911]
[1758505801903,0.71,234.44,234.4,0.68]
[1758505802099,0.71,234.43,234.38,10.66643911]
[1758505802305,0.71,234.42,234.38,10.66643911]
[1758505802686,0.71,234.42,234.38,11.34643911]
[1758505803108,132.91,234.45,234.39,0.68]
[1758505804210,132.91,234.45,234.38,10.66643911]
[1758505804510,132.91,234.45,234.38,11.34643911]
[1758505805007,0.71,234.44,234.38,11.34643911]
[1758505805210,132.2,234.45,234.36,4.26693975]
[1758505805396,0.71,234.43,234.36,4.94693975]
[1758505805596,0.71,234.43,234.36,15.61428912]
[1758505806315,0.71,234.43,234.37,0.68]
[1758505807190,0.71,234.43,234.38,4.26657564]
[1758505807410,0.71,234.42,234.38,4.26657564]
[1758505808412,132.2,234.45,234.36,14.93428912]
[1758505808615,132.2,234.45,234.38,0.68]
[1758505809911,132.87,234.45,234.39,14.93237765]
[1758505810218,132.2,234.45,234.39,4.26639361]
[1758505810391,0.67,234.44,234.39,4.26639361]
[1758505810793,0.67,234.43,234.39,4.26639361]
[1758505812003,0.67,234.43,234.38,4.26657564]
[1758505812216,0.67,234.43,234.38,4.97657564]
[1758505814416,132.2,234.45,234.38,4.97657564]
[1758505814594,0.67,234.43,234.38,4.97657564]
[1758505815103,132.2,234.45,234.39,0.71]
[1758505815492,132.87,234.45,234.39,0.71]
[1758505815692,0.67,234.48,234.39,0.71]
[1758505815898,2.8791057,234.47,234.39,0.71]
[1758505816096,60.70104218,234.52,234.4,14.93174061]
[1758505816398,60.70104218,234.52,234.41,34.01]
[1758505816597,60.70104218,234.52,234.42,0.71]
[1758505816901,0.67,234.51,234.42,0.71]
[1758505817106,0.67,234.51,234.43,33.3]
[1758505817320,0.67,234.51,234.4,14.93174061]
[1758505817321,0.67,234.5,234.4,14.93174061]
[1758505817605,4.26421048,234.51,234.4,14.93174061]
[1758505817606,0.67,234.49,234.41,33.3]
[1758505817914,0.67,234.48,234.41,34.01]
[1758505818219,0.67,234.48,234.42,4.26584762]
[1758505819116,94.00104218,234.52,234.43,0.71]
[1758505819330,0.67,234.5,234.43,0.71]
[1758505819501,29.50104218,234.52,234.43,0.71]
[1758505820102,30.17104218,234.52,234.43,0.71]
[1758505821019,30.17104218,234.52,234.44,4.2654837]
[1758505821316,0.67,234.51,234.41,4.2660296]
[1758505821610,3.54466243,234.5,234.41,4.2660296]
[1758505821821,34.74466243,234.49,234.41,4.2660296]
[1758505822013,3.54466243,234.48,234.39,4.26621804]
[1758505822198,0.67,234.47,234.39,4.26621804]
[1758505822404,0.67,234.46,234.39,4.26621804]
[1758505822707,135.07466243,234.48,234.39,4.26621804]
[1758505822708,0.67,234.45,234.39,4.26621804]
[1758505822902,132.2,234.48,234.39,4.26621804]
[1758505823215,0.67,234.44,234.39,4.26621804]
[1758505823421,4.26493794,234.47,234.37,4.26675769]
[1758505823719,0.67,234.43,234.37,4.26675769]
[1758505827002,0.69,234.42,234.35,4.46704191]
[1758505827218,0.69,234.41,234.35,4.46704191]
[1758505827393,2.87538768,234.44,234.35,4.46704191]
[1758505827394,0.69,234.4,234.35,4.46704191]
[1758505827598,0.69,234.39,234.35,4.46704191]
[1758505828122,0.69,234.41,234.35,5.14704191]
[1758505829529,132.2,234.43,234.36,0.68]
[1758505830101,0.69,234.42,234.36,0.68]
[1758505830608,0.69,234.42,234.35,4.46704191]
[1758505830809,0.69,234.41,234.35,4.46704191]
[1758505831525,132.2,234.43,234.36,0.68]
[1758505832214,132.89,234.43,234.36,0.68]
[1758505832529,132.2,234.43,234.36,0.68]
[1758505833528,132.2,234.43,234.37,14.93365191]
[1758505834531,132.2,234.43,234.37,15.61365191]
[1758505835025,132.2,234.43,234.38,0.68]
[1758505835223,132.2,234.43,234.39,0.68]
[1758505835408,132.2,234.43,234.4,0.68]
[1758505835610,0.69,234.46,234.4,0.68]
[1758505836114,0.69,234.46,234.39,33.3]
[1758505836423,3.56443605,234.45,234.35,4.46706373]
[1758505836598,4.95566364,234.44,234.35,4.46706373]
[1758505836802,4.26566364,234.44,234.35,4.46706373]
[1758505837002,0.69,234.43,234.35,4.46706373]
[1758505837218,0.69,234.42,234.35,4.46706373]
[1758505837426,4.26566364,234.44,234.35,4.46706373]
[1758505837427,0.69,234.41,234.35,4.46706373]
[1758505837901,0.69,234.4,234.35,4.46706373]
[1758505838101,0.69,234.39,234.35,4.46706373]
[1758505840838,0.69,234.38,234.35,15.13486829]
[1758505841021,0.69,234.4,234.35,15.13486829]
[1758505841213,0.69,234.39,234.35,15.13486829]
[1758505843312,0.69,234.43,234.36,0.68]
[1758505843509,2.87443605,234.45,234.37,33.28]
[1758505843717,132.89,234.46,234.37,33.28]
[1758505843718,132.2,234.46,234.38,0.68]
[1758505844116,132.89,234.46,234.39,14.93237765]
[1758505844314,132.89,234.46,234.4,0.68]
[1758505846144,132.89,234.46,234.41,14.93110361]
[1758505846838,0.69,234.46,234.41,14.93110361]
[1758505847449,31.2,234.49,234.41,14.93110361]
[1758505847622,0.69,234.46,234.41,14.93110361]
[1758505848244,0.69,234.46,234.41,10.66507401]
[1758505848734,0.69,234.45,234.41,10.66507401]
[1758505848961,7.13766011,234.5,234.4,37.5462116]
[1758505849254,31.89,234.49,234.4,38.2262116]
[1758505849422,0.69,234.48,234.4,48.89174061]
[1758505849620,0.69,234.47,234.4,48.89174061]
[1758505849871,0.69,234.46,234.4,48.89174061]
[1758505850558,0.69,234.45,234.4,48.21174061]
[1758505850731,0.69,234.44,234.4,48.21174061]
[1758505851047,0.69,234.43,234.4,48.21174061]
[1758505851255,33.97,234.42,234.35,0.2]
[1758505851456,2.87174836,234.41,234.35,0.2]
[1758505851620,3.56174836,234.4,234.35,0.2]
[1758505851950,4.35096788,234.39,234.35,0.2]
[1758505852126,4.35096788,234.38,234.35,0.2]
[1758505852327,0.69,234.37,234.35,0.2]
[1758505852825,0.69,234.37,234.35,4.46711683]
[1758505853040,0.69,234.37,234.35,0.2]
[1758505853227,0.69,234.36,234.35,0.2]
[1758505855826,3.55834216,234.45,234.35,0.2]
[1758505855827,10.66383604,234.44,234.35,0.2]
[1758505856024,37.62755767,234.41,234.35,0.2]
[1758505856235,0.69,234.36,234.35,0.2]
[1758505860660,31.89,234.36,234.35,0.2]
[1758505860874,0.69,234.36,234.35,0.2]
[1758505861163,5.03271924,234.36,234.35,0.2]
[1758505861768,38.31271924,234.36,234.35,0.2]
[1758505862980,36.23271924,234.36,234.35,0.2]
[1758505863144,38.31271924,234.36,234.35,0.2]
[1758505863347,36.83649262,234.36,234.35,0.2]
[1758505864068,36.23049052,234.36,234.35,0.2]
[1758505864257,36.83649262,234.36,234.35,0.2]
[1758505864460,38.30999804,234.36,234.35,0.2]
[1758505865050,40.02133781,234.36,234.35,0.2]
[1758505866251,40.04133781,234.36,234.35,0.2]
[1758505867398,44.30827756,234.36,234.35,0.2]
[1758505867751,6.74133781,234.36,234.35,0.2]
[1758505868054,33.3,234.38,234.35,0.2]
[1758505869364,33.96,234.38,234.35,0.2]
[1758505870073,38.22674059,234.38,234.35,0.2]
[1758505870371,0.66,234.37,234.35,0.2]
[1758505870771,33.96,234.37,234.35,0.2]
[1758505871378,64.5,234.38,234.35,0.2]
[1758505871898,65.16,234.38,234.35,0.2]
[1758505872250,31.86,234.38,234.35,0.2]
[1758505872489,33.3,234.38,234.35,0.2]
[1758505872679,33.3,234.38,234.35,0.89]
[1758505872873,33.3,234.38,234.35,5.15707353]
[1758505873191,33.3,234.38,234.35,0.2]
[1758505873575,132.2,234.39,234.35,0.2]
[1758505873765,165.5,234.39,234.35,0.2]
[1758505874082,165.48,234.39,234.35,5.15702281]
[1758505874268,132.2,234.39,234.35,5.15702281]
[1758505874585,165.48,234.39,234.35,5.15702281]
[1758505874791,31.2,234.36,234.35,0.2]
[1758505875085,64.48,234.36,234.35,0.2]
[1758505875387,69.40693975,234.36,234.35,0.2]
[1758505876799,72.26478316,234.36,234.35,0.2]
[1758505877172,69.40693975,234.36,234.35,0.2]
[1758505879398,72.26414543,234.36,234.35,0.2]
[1758505879569,73.73522039,234.36,234.35,0.2]
[1758505880178,73.73522039,234.36,234.32,0.2]
[1758505880364,4.32828064,234.35,234.32,1e-08]
[1758505880566,37.60828064,234.34,234.32,1e-08]
[1758505880764,37.60828064,234.33,234.32,1e-08]
[1758505881172,37.90013308,234.33,234.32,1e-08]
[1758505881396,71.18013308,234.33,234.32,1e-08]
[1758505881963,37.90013308,234.33,234.32,1e-08]
[1758505882190,75.4676191,234.33,234.32,1e-08]
[1758505882490,73.75576666,234.33,234.32,1e-08]
[1758505883567,40.45576666,234.33,234.32,1e-08]
[1758505883794,71.6246917,234.33,234.32,1e-08]
[1758505884088,72.2846917,234.33,234.32,1e-08]